Cogmind - Beta 14 @@@ ROGUE MODE // 2024.10.01 @ 15:35:26 Player: Jay Result: Destroyed by G-47 Trooper with Particle Gun Performance ------------- Evolutions (2) 1000 Regions Visited (5) 1000 Robots Destroyed (113) 565 Value Destroyed (2575) 2575 Prototype IDs (2) 40 Alien Tech Used (0) 0 Bonus (48) 48 TOTAL SCORE: 5228 Bonus ------- High Alert Combat Kills 300 Entered Garrisons 200 Friendly Fire -452 Cogmind --------- Core Integrity 0/550 Matter 247/400 Energy 100/100 System Corruption 0% Temperature Cool (9) Movement Core (50) Location -8/Materials Parts ------- > --- POWER (2) -------- (None) > --- PROPULSION (4) --- (None) > --- UTILITY (3) ------ Medium Matter Pod Advanced Visual Processing Unit > --- WEAPON (2) ------- (None) > --- INVENTORY (5) ---- Aluminum Leg Mini Grenade Launcher Mini Grenade Launcher Mini Grenade Launcher Peak State ------------ > --- POWER ------------ Improved Ion Engine > --- PROPULSION ------- Aluminum Leg Aluminum Leg Aluminum Leg Aluminum Leg > --- UTILITY ---------- Drone Bay Drone Bay > --- WEAPON ----------- Heavy EM Pulse Gun Heavy EM Pulse Gun > --- INVENTORY -------- Drone Bay Drone Bay Drone Bay Drone Bay [Rating: 22] Favorites ----------- Power Improved Ion Engine Engine Improved Ion Engine Propulsion Aluminum Leg Leg Aluminum Leg Wheel Wheel Utility Sensor Array Device Sensor Array Storage Medium Battery Processor Machine Analyzer Protection Light Armor Plating Weapon Small Laser Energy Gun Small Laser Energy Cannon Light EM Pulse Cannon Ballistic Gun High-powered Shotgun Launcher Mini Grenade Launcher Build | -11 -10 -9 -9 -9 -8 ------- Run | Yrd Mat Mat Sto Gar Mat Slots Evolved 4 | . . 2 . . 2 Power 1 | . . . . . 1 Propulsion 2 | . . 2 . . . Utility 1 | . . . . . 1 Weapon . | . . . . . . Parts Attached 80 | 7 14 23 25 5 6 Power 13 | 1 3 5 3 . 1 Engine 13 | 1 3 5 3 . 1 Core . | . . . . . . Reactor . | . . . . . . Propulsion 25 | 2 4 7 7 4 1 Treads . | . . . . . . Leg 24 | 2 4 7 7 4 . Wheel 1 | . . . . . 1 Hover . | . . . . . . Flight . | . . . . . . Utility 24 | 2 5 2 11 1 3 Device 15 | 1 1 1 11 1 . Storage 3 | 1 1 . . . 1 Processor 4 | . 2 1 . . 1 Hackware . | . . . . . . Protection 2 | . 1 . . . 1 Artifact . | . . . . . . Weapon 18 | 2 2 9 4 . 1 Energy Gun 14 | 2 2 8 2 . . Energy Cannon 1 | . . 1 . . . Ballistic Gun 1 | . . . . . 1 Ballistic Cannon . | . . . . . . Launcher 2 | . . . 2 . . Special Weapon . | . . . . . . Impact Weapon . | . . . . . . Slashing Weapon . | . . . . . . Piercing Weapon . | . . . . . . Special Melee Weapon . | . . . . . . Unidentified Prototypes 2 | . . 2 . . . Corrupted Parts 4 | . . 4 . . . System Corruption 9 | . . 9 . . . Parts Lost 21 | . . 4 3 4 10 Power 2 | . . . . 1 1 Propulsion 10 | . . 2 1 2 5 Utility 4 | . . 1 . 1 2 Weapon 5 | . . 1 2 . 2 Highest Loss Streak 6 | . . 2 1 3 6 To Critical Strikes . | . . . . . . Average Slot Usage (%) 88 | . 97 89 94 69 45 Engine 10 | . 11 11 11 5 2 Leg 34 | . 28 34 43 36 16 Device 13 | . 10 18 14 5 4 Storage 1 | . 5 . . . 2 Processor 3 | . 4 . 5 . 4 Protection 2 | . 7 2 . . 2 Energy Gun 18 | . 28 21 14 . . Launcher 2 | . . . 2 22 8 Peak Build Rating 22 | 9 9 14 22 15 15 Average Rating 10 | 6 7 10 15 11 9 On Entrance 9 | . 9 7 13 15 13 Naked Turns . | . . . . . . Heaviest Build 25 | 11 11 13 25 15 15 Greatest Support 40 | 20 20 40 40 30 20 Greatest Overweight (x) 1 | . . . . . 1 Average Overweight (x) . | . . . . . . Largest Inventory Capacity 8 | 8 8 5 5 5 5 Average Capacity 5 | 6 5 5 5 5 5 Most Carried 5 | 1 5 5 5 5 4 Average Carried 4 | . 4 4 4 4 4 Final Capacity 8 | 8 5 5 5 5 5 Final Carried 5 | 1 5 5 5 4 4 Class Distribution -------------------- 54% | Scavenger-Mutant 45% | Mutant Dominant Class ---------------- Mutant | -10/Materials Scavenger-Mutant | -9/Materials Scavenger-Mutant | -9/Storage Scavenger-Mutant | -9/Garrison Mutant | -8/Materials Resources | -11 -10 -9 -9 -9 -8 ----------- Run | Yrd Mat Mat Sto Gar Mat Matter Collected 1470 | 270 130 246 349 186 289 Remotely . | . . . . . . Salvage Created 3779 | 124 536 1208 1410 253 248 Parts 224 | 10 41 65 80 18 10 Haulers Intercepted 4 | . 1 2 1 . . Recyclers Shooed 11 | . 1 2 7 . 1 Parts Field Recycled . | . . . . . . Retrieved Matter . | . . . . . . Parts Self-Destructed . | . . . . . . Prevented . | . . . . . . Kills | -11 -10 -9 -9 -9 -8 ------- Run | Yrd Mat Mat Sto Gar Mat Combat Hostiles Destroyed 69 | . 7 19 22 14 7 Guns 36 | . 7 17 11 . 1 Cannons 2 | . . . 2 . . AOE 31 | . . 2 9 14 6 Classes Destroyed 14 | 3 5 2 2 . 2 Worker 11 | 2 1 3 4 . 1 Builder 5 | . 2 . 3 . . Tunneler 5 | 2 1 1 1 . . Hauler 4 | . 1 2 1 . . Recycler 10 | 1 2 2 5 . . Mechanic 1 | . . 1 . . . Operator 1 | . . . 1 . . Drone 3 | . . . 3 . . Watcher 7 | . 2 2 2 . 1 Swarmer 15 | . 3 4 4 4 . Grunt 40 | . 4 9 13 10 4 Brawler 1 | . . . . . 1 Sentry 11 | . . 6 5 . . Specialist 2 | . . . . . 2 Best Kill Streak 8 | 3 7 7 5 8 7 Combat Bots Only 8 | . 4 6 4 8 6 Max Kills in Single Turn 4 | 1 1 1 3 3 4 Gunslinging . | . . . . . . Exploded 4 | . . 1 2 3 4 Melee . | . . . . . . Uniques/NPCs Destroyed . | . . . . . . Combat | -11 -10 -9 -9 -9 -8 -------- Run | Yrd Mat Mat Sto Gar Mat Hostile Shots Fired 324 | . 32 85 81 23 103 Missed 98 | . 6 20 30 5 37 Damage Taken 3539 | . 294 875 741 340 1289 Core 975 | . 93 139 98 84 561 Absorbed by Shields . | . . . . . . Core Remaining (%) 60 | 100 62 . . 19 . Volleys Fired 283 | 9 60 84 94 8 28 Largest 2 | 2 2 2 2 2 2 Hottest 112 | 80 80 112 96 60 60 Shots Fired 477 | 18 120 158 130 16 35 Gun 393 | 18 120 157 77 . 21 Cannon 34 | . . 1 33 . . Launcher 50 | . . . 20 16 14 Special . | . . . . . . Kinetic 21 | . . . . . 21 Thermal 293 | 18 120 119 36 . . Explosive 50 | . . . 20 16 14 Electromagnetic 113 | . . 39 74 . . Robot Hit Streak 19 | 7 7 19 11 2 13 Robot Miss Streak 5 | 2 5 3 5 1 5 Penetration Max . | . . . . . . Secondary Targets . | . . . . . . Shots Hit Robots 288 | 10 67 105 74 2 30 Core Hits 185 | 6 26 49 57 21 26 Critical Kills . | . . . . . . Critical Parts Destroyed . | . . . . . . Critical Strikes . | . . . . . . Melee Attacks . | . . . . . . Impact . | . . . . . . Slashing . | . . . . . . Piercing . | . . . . . . Sneak Attacks . | . . . . . . Combat Hostiles . | . . . . . . Follow-up Attacks . | . . . . . . Damage Inflicted 7146 | 110 741 1551 2225 1107 1412 Guns 3195 | 110 741 1410 625 . 309 Cannons 456 | . . . 456 . . Explosions 3450 | . . 141 1144 1107 1058 Melee . | . . . . . . Ramming 45 | . . . . . 45 Kinetic 309 | . . . . . 309 Thermal 2489 | 110 741 981 657 . . Explosive 2919 | . . . 754 1107 1058 Electromagnetic 1384 | . . 570 814 . . Impact . | . . . . . . Slashing . | . . . . . . Piercing . | . . . . . . Highest Corruption 9 | . . 9 9 9 . Average Corruption 7 | . . 4 9 9 . Corruption Purged . | . . . . . . Corruption Blocked . | . . . . . . Effects 46 | . . 7 29 10 . Message Errors 9 | . . 2 5 2 . Matter Fused 9 | . . 2 6 1 . Heat Flow Errors 4 | . . . 4 . . Energy Discharges 3 | . . . 1 2 . Parts Fused 1 | . . . 1 . . Data Loss (minor) 10 | . . 2 7 1 . Data Loss (major) 5 | . . . 3 2 . Misfires 2 | . . . 1 1 . Alerts 2 | . . 1 1 . . Weapon Failures 1 | . . . . 1 . Overload Shots . | . . . . . . Overflow Damage 77 | . . . 12 37 28 Projectiles 5 | . . . 5 . . Explosions 72 | . . . 7 37 28 Melee . | . . . . . . Knockbacks 1 | . . . . . 1 Impact 1 | . . . . . 1 Kinetic . | . . . . . . Secondary . | . . . . . . Self-Inflicted Damage 350 | . . 75 106 149 20 Shots 10 | . . 2 3 5 . Rammed 9 | . . . . . 9 Targets Rammed 9 | . . . . . 9 Kicked . | . . . . . . Crushed . | . . . . . . Highest Temperature 359 | 54 204 180 359 6 1 Average Temperature 60 | 22 49 44 96 3 1 Received Heat Transfer 990 | . 126 297 246 87 234 Effects 5 | . . . 5 . . Interference 5 | . . . 5 . . Siege Activations . | . . . . . . Robots Corrupted 1 | . . . 1 . . Combat Hostiles . | . . . . . . Parts Fried 9 | . . 3 6 . . Impact Corruptions . | . . . . . . Robots Melted . | . . . . . . Combat Hostiles . | . . . . . . Parts Melted 8 | . 1 7 . . . Heat Transferred 5099 | 250 1675 2124 1050 . . Parts Sabotaged . | . . . . . . Parts Stolen . | . . . . . . Parts Stripped . | . . . . . . Power Chain Reactions 8 | . . 2 6 . . Alert | -11 -10 -9 -9 -9 -8 ------- Run | Yrd Mat Mat Sto Gar Mat Peak Influence 819 | 25 198 420 711 819 569 Initial 462 | . 16 21 177 462 399 Average 217 | 8 36 149 339 648 494 Maximum Alert Level 3 | . . 2 3 3 2 Low Security (%) 54 | 100 100 74 3 . . Level 1 28 | . . 21 77 . 36 Level 2 13 | . . 4 18 55 63 Level 3 3 | . . . . 44 . Level 4 . | . . . . . . Level 5 . | . . . . . . High Security . | . . . . . . Max Security . | . . . . . . Squads Dispatched 13 | . 3 2 5 . 3 Investigation 5 | . 1 1 3 . . Extermination . | . . . . . . Reinforcement 7 | . 2 1 1 . 3 Assault . | . . . . . . Garrison 1 | . . . 1 . . Intercept . | . . . . . . Searches Triggered . | . . . . . . Construction Impeded 2 | . . . 1 . 1 Haulers Reinforced . | . . . . . . Active Scanning Responses . | . . . . . . Cargo Convoy Interrupts . | . . . . . . Stealth | -11 -10 -9 -9 -9 -8 --------- Run | Yrd Mat Mat Sto Gar Mat Distress Signals 7 | . 1 2 2 . 2 Communications Jammed . | . . . . . . Distress Signals . | . . . . . . Times Spotted 101 | . 15 30 25 15 16 Peak Tracking Total 8 | . 5 8 4 5 7 Tactical Retreats 7 | . 1 2 3 . 1 Traps | -11 -10 -9 -9 -9 -8 ------- Run | Yrd Mat Mat Sto Gar Mat Traps Triggered 4 | . 1 1 1 1 . Indirectly . | . . . . . . Trap Hack Attempts . | . . . . . . Triggered . | . . . . . . Disarmed . | . . . . . . Reprogrammed . | . . . . . . Reused . | . . . . . . Traps Extracted . | . . . . . . Installed . | . . . . . . Triggered . | . . . . . . Machines | -11 -10 -9 -9 -9 -8 ---------- Run | Yrd Mat Mat Sto Gar Mat Machines Disabled 4 | . . 2 2 . . Max in Single Turn 1 | . . 1 1 . . Machines Repaired . | . . . . . . Machines Dismantled . | . . . . . . Machines Sabotaged . | . . . . . . Overloaded Fab Kills . | . . . . . . Hacking | -11 -10 -9 -9 -9 -8 --------- Run | Yrd Mat Mat Sto Gar Mat Machines Accessed 17 | . 3 4 9 1 . Terminals 12 | . 2 3 6 1 . Fabricators . | . . . . . . Repair Stations . | . . . . . . Recycling Units 3 | . 1 . 2 . . Scanalyzers 1 | . . 1 . . . Garrison Access 1 | . . . 1 . . Total Hacks 38 | . 7 9 20 2 . Successful 20 | . 2 7 11 . . Failed 17 | . 5 1 9 2 . Catastrophic 3 | . 1 . 1 1 . Database Lockouts 1 | . . 1 . . . Manual 20 | . 3 10 7 . . Terminals 29 | . 4 7 16 2 . Fabricators . | . . . . . . Repair Stations . | . . . . . . Recycling Units 6 | . 3 . 3 . . Scanalyzers 2 | . . 2 . . . Garrison Access 1 | . . . 1 . . Terminal Hacks 15 | . 2 5 8 . . Record 4 | . . 2 2 . . Open Door 2 | . . . 2 . . Alert Level 3 | . 1 1 1 . . Locate Traps 1 | . . . 1 . . Investigation Status 1 | . . 1 . . . Recall Investigation 1 | . 1 . . . . Hauler Manifests 2 | . . 1 1 . . Zone Layout 1 | . . . 1 . . Fabricator Hacks . | . . . . . . Repair Station Hacks . | . . . . . . Recycling Unit Hacks 2 | . . . 2 . . Retrieve Components 2 | . . . 2 . . Scanalyzer 2 | . . 2 . . . Insert Component 1 | . . 1 . . . Analyze 1 | . . 1 . . . Garrison Access Hacks 1 | . . . 1 . . Unlock Access 1 | . . . 1 . . Unauthorized Hacks . | . . . . . . Terminals . | . . . . . . Fabricators . | . . . . . . Repair Stations . | . . . . . . Recycling Units . | . . . . . . Scanalyzers . | . . . . . . Garrison Access . | . . . . . . Data Cores Recovered 1 | . . . 1 . . Used . | . . . . . . Hacking Detections 7 | . 1 2 3 1 . Full Trace Events 5 | . 1 1 2 1 . Feedback Events . | . . . . . . Feedback Blocked . | . . . . . . Robot Schematics Acquired . | . . . . . . Robots Built . | . . . . . . Authchips . | . . . . . . Time . | . . . . . . Total Robot Build Rating . | . . . . . . Part Schematics Acquired 1 | . . 1 . . . Parts Built . | . . . . . . Authchips . | . . . . . . Time . | . . . . . . Total Part Build Rating . | . . . . . . Parts Repaired . | . . . . . . Time . | . . . . . . Parts Recycled . | . . . . . . Recycled Matter . | . . . . . . Retrieved Matter . | . . . . . . Retrieved Components 12 | . . . 12 . . Parts Scanalyzed 1 | . . 1 . . . Part Schematics Acquired 1 | . . 1 . . . Parts Damaged . | . . . . . . Bothacking | -11 -10 -9 -9 -9 -8 ------------ Run | Yrd Mat Mat Sto Gar Mat Used RIF Installer . | . . . . . . Robots Hacked . | . . . . . . Non-combat . | . . . . . . Combat . | . . . . . . Robot Hacks Applied . | . . . . . . Relay Couplers Released . | . . . . . . Fabnet Peak Effective % . | . . . . . . Robots Rewired . | . . . . . . Allies Hacked . | . . . . . . Hacks Repelled . | . . . . . . Allies | -11 -10 -9 -9 -9 -8 -------- Run | Yrd Mat Mat Sto Gar Mat Total Allies . | . . . . . . Largest Group . | . . . . . . Highest-Rated Group . | . . . . . . Highest-Rated Ally . | . . . . . . Total Orders . | . . . . . . Ally Attacks . | . . . . . . Total Damage . | . . . . . . Kills . | . . . . . . Allies Corrupted . | . . . . . . Allies Melted . | . . . . . . Intel | -11 -10 -9 -9 -9 -8 ------- Run | Yrd Mat Mat Sto Gar Mat Robot Analysis Total . | . . . . . . Derelict Logs Recovered . | . . . . . . Drone Launches 21 | . . . 17 4 . Drone Recoveries 10 | . . . 9 1 . Exploration | -11 -10 -9 -9 -9 -8 ------------- Run | Yrd Mat Mat Sto Gar Mat Turns Passed 3670 | 127 961 1181 935 254 212 Spaces Moved 2004 | 77 460 717 443 179 128 Core 58 | 4 . . . . 54 Treads . | . . . . . . Legs 1936 | 73 460 717 443 179 64 Wheels 10 | . . . . . 10 Hover . | . . . . . . Flight . | . . . . . . Fastest Speed 50 | 50 120 120 120 120 50 Average Speed 117 | 116 120 120 120 120 90 Slowest Speed 120 | 120 120 120 120 120 120 Overloaded Moves . | . . . . . . Propulsion Burnouts . | . . . . . . Robots Hopped . | . . . . . . Cave-ins Triggered . | . . . . . . Exploration Rate (%) 32 | 5 55 33 51 39 14 Regions Visited 5 Branch Regions 1 Pre-discovered Areas . | . . . . . . Known Exits Taken 1 | . . . 1 . . Unknown Exits Taken 3 | 1 1 1 . . . Scrap Searched . | . . . . . . Spaces Dug . | . . . . . . Terrain Destroyed 249 | . . 6 160 50 33 Melee . | . . . . . . Projectile . | . . . . . . AOE 249 | . . 6 160 50 33 Terrain Rammed . | . . . . . . Walls Destroyed . | . . . . . . Machines Disabled . | . . . . . . Actions | -11 -10 -9 -9 -9 -8 --------- Run | Yrd Mat Mat Sto Gar Mat Total 2824 | 93 748 880 718 200 185 Wait 391 | . 203 43 127 4 14 Move 1999 | 76 459 716 442 178 128 Hop . | . . . . . . Pick Up 14 | 1 4 1 8 . . Fast Attach 27 | 7 1 6 4 3 6 Attach 1 | . . . . 1 . Detach 3 | . 1 . 2 . . Swap 52 | . 13 17 21 1 . Drop 39 | . 7 13 18 1 . Fire 283 | 9 60 84 94 8 28 Melee . | . . . . . . Ram 9 | . . . . . 9 Kick . | . . . . . . Crush . | . . . . . . Escape Stasis 3 | . . . . 3 . Rewire . | . . . . . . Trap . | . . . . . . Miscellaneous 3 | . . . 2 1 . Route ------- -11/Scrapyard -10/Materials (discovered 2 exits: *Mat / *Min) -9/Materials -9/Storage -9/Garrison -8/Materials (discovered 1 exit: [*Fac]) History --------- Turn | Location | Event 2 | -11/Scrapyard | Discovered new exit (range 16) 128 | -11/Scrapyard | Entered Materials 316 | -10/Materials | Build established: Mutant 506 | -10/Materials | Discovered new exit (range 15) 534 | -10/Materials | Identified exit to Mines 879 | -10/Materials | Discovered new exit (range 13) 1089 | -10/Materials | Entered another Materials area 1089 | -9/Materials | Evolved 2 slots: Propulsion x2 1113 | -9/Materials | Discovered new exit (range 6) 1375 | -9/Materials | Central database locked down 1820 | -9/Materials | Build established: Scavenger-Mutant 2270 | -9/Materials | Entered Storage 2854 | -9/Storage | Lost 3 allies 3024 | -9/Storage | Core integrity fell below 50% 3142 | -9/Storage | Garrison activated, responded to threat 3204 | -9/Storage | Identified exit to Garrison 3205 | -9/Storage | Entered Garrison 3235 | -9/Garrison | Triggered checkpoint 3345 | -9/Garrison | Core integrity fell below 20% 3366 | -9/Garrison | Destroyed 8 combat bots 3373 | -9/Garrison | Lost 3 parts (1p2n) 3379 | -9/Garrison | Triggered checkpoint 3436 | -9/Garrison | Discovered new exit (range 16) 3439 | -9/Garrison | Triggered checkpoint 3459 | -9/Garrison | Entered Materials 3459 | -8/Materials | Accompanied by 3 allies 3459 | -8/Materials | Evolved 2 slots: Power x1, Utility x1 3546 | -8/Materials | Discovered new exit (range 11) 3590 | -8/Materials | Lost 6 parts (3n2u1w) 3610 | -8/Materials | Lost 3 allies 3610 | -8/Materials | Core integrity fell below 50% 3666 | -8/Materials | Core integrity fell below 20% 3671 | -8/Materials | Destroyed by G-47 Trooper with Particle Gun Last Messages --------------- 03619_ Acquired Med. Matter Pod. 03621_ R-06 Scavenger collects Sml. Matter Pod. 03626_ W-25 Informer sends out distress signal. 03648_ Hpw. Shotgun destroyed. 03650_ Lgt. Ion Engine destroyed. 03651_ Slammed into G-47 Trooper. 03655_ W-25 Informer sends out distress signal. 03655_ Wheel destroyed. 03660_ Slammed into G-47 Trooper. 03661_ G-47 Trooper knocked back. 03662_ Slammed into G-47 Trooper. 03665_ M-28 Smith destroyed. 03666_ U-05 Engineer lays Concrete. 03668_ Slammed into G-47 Trooper. 03669_ U-05 Engineer lays Concrete. 03669_ Slammed into G-47 Trooper. 03670_ Acquired 1 matter. 03670_ Critical hit (Burn: +37). 03670_ Knocked back. 03670_ U-05 Engineer builds a Wall. Map ----- +----------------------------------------------------+ | | | | | | | | | | | | | | | | | | | | | | | | | ?????????????????????????????????????????????????? | | ?????????????????????????????????????????????????? | | ?????????????????????????????????????????????????? | | ????????????##???????????????????????????????????? | | ??????????#** ##?????????????????????????????????? | | ??????????#** ?????????????????????????????????? | | ??????????#//